fUST/lending_fUST_20250310
["ID","MTS","AMOUNT","RATE_DAILY","PERIOD"]
[355783817,1741560640542,-166.66666667,0.00027819,2]
[355783818,1741560640551,-152.0,0.00027835,2]
[355783819,1741560640561,-489.04,0.00027908,3]
[355783820,1741560640571,-10104.2919071,0.00027919,2]
[355783821,1741560640581,-500.0,0.00027973,5]
[355783822,1741560640591,-500.0,0.00027973,5]
[355783823,1741560640602,-500.0,0.00027973,5]
[355783824,1741560640614,-529.16529002,0.00027973,5]
[355783825,1741560640624,-500.0,0.00027973,5]
[355783826,1741560640633,-600.0,0.00028003,2]
[355783827,1741560640645,-326.02,0.00028008,3]
[355783828,1741560640657,-163.01,0.00028008,3]
[355783829,1741560640666,-24118.4096933,0.0002801,2]
[355783830,1741560640676,-185.96032923,0.0002801,2]
[355783831,1741560640688,-3067.60459615,0.00028018,2]
[355783832,1741560640698,-471.35,0.0002802,2]
[355783833,1741560640707,-500.0,0.0002802,2]
[355783834,1741560640717,-500.0,0.0002802,2]
[355783835,1741560640726,-905.65970739,0.0002802,2]
[355783836,1741560640736,-500.0,0.0002802,2]
[355783837,1741560640746,-500.0,0.0002802,2]
[355783838,1741560640755,-500.0,0.0002802,2]
[355783839,1741560640765,-500.0,0.0002802,2]
[355783840,1741560640774,-500.0,0.0002802,2]
[355783841,1741560640783,-500.0,0.0002802,2]
[355783842,1741560640793,-500.0,0.0002802,2]
[355783843,1741560640803,-685.33869172,0.0002802,2]
[355783844,1741560640812,-500.0,0.0002802,2]
[355783845,1741560640822,-500.0,0.0002802,2]
[355783846,1741560640832,-500.0,0.0002802,2]
[355783847,1741560640841,-500.0,0.0002802,2]
[355783848,1741560640851,-500.0,0.0002802,2]
[355783849,1741560640860,-500.0,0.0002802,2]
[355783850,1741560640870,-500.0,0.0002802,2]
[355783851,1741560640880,-500.0,0.0002802,2]
[355783852,1741560640890,-500.0,0.0002802,2]
[355783853,1741560640900,-500.0,0.0002802,2]
[355783854,1741560640910,-500.0,0.0002802,2]
[355783855,1741560640919,-500.0,0.0002802,2]
[355783856,1741560640929,-500.0,0.0002802,2]
[355783857,1741560640938,-808.10137095,0.0002802,2]
[355783858,1741560640948,-500.0,0.0002802,2]
[355783859,1741560640957,-661.58020662,0.0002802,2]
[355783860,1741560640966,-700.0,0.0002802,2]
[355783861,1741560640976,-700.0,0.0002802,2]
[355783862,1741560640985,-700.0,0.0002802,2]
[355783863,1741560640995,-700.0,0.0002802,2]
[355783864,1741560641005,-700.0,0.0002802,2]
[355783865,1741560641015,-700.0,0.0002802,2]
[355783866,1741560641024,-700.0,0.0002802,2]
[355783867,1741560641033,-700.0,0.0002802,2]
[355783868,1741560641042,-700.0,0.0002802,2]
[355783869,1741560641052,-700.0,0.0002802,2]
[355783870,1741560641061,-700.0,0.0002802,2]
[355783871,1741560641071,-700.0,0.0002802,2]
[355783872,1741560641080,-700.0,0.0002802,2]
[355783873,1741560641090,-1322.7646803,0.0002802,2]
[355783874,1741560641100,-500.0,0.0002802,2]
[355783875,1741560641110,-500.0,0.0002802,2]
[355783876,1741560641120,-500.0,0.0002802,2]
[355783877,1741560641129,-500.0,0.0002802,2]
[355783878,1741560641139,-500.0,0.0002802,2]
[355783879,1741560641149,-712.81031092,0.0002802,2]
[355783880,1741560641159,-500.0,0.0002802,2]
[355783881,1741560641168,-500.0,0.0002802,2]
[355783882,1741560641179,-500.0,0.0002802,2]
[355783883,1741560641188,-878.63792193,0.0002802,2]
[355783884,1741560641198,-157.307952,0.00028027,2]
[355783885,1741560641207,-622.2,0.00028058,2]
[355783886,1741560641217,-214.83544598,0.00028073,5]
[355783887,1741560641226,-500.0,0.00028073,5]
[355783888,1741560641236,-500.0,0.00028073,5]
[355783889,1741560641245,-500.0,0.00028073,5]
[355783890,1741560641255,-349.82031971,0.00028073,2]
[355783891,1741560641264,-500.0,0.00028073,5]
[355783892,1741560641274,-500.0,0.00028073,5]
[355783893,1741560641283,-501.90848493,0.00028073,5]
[355783894,1741560641292,-500.0,0.00028073,5]
[355783895,1741560641302,-645.2214,0.00028113,2]
[355783896,1741560641312,-669.0945918,0.00028168,2]
[355783897,1741560641321,-693.8510917,0.00028223,2]
[355783898,1741560641331,-719.52358209,0.00028278,2]
[355783899,1741560641341,-445.95582708,0.00028317,2]
[355783900,1741560641350,-746.14595463,0.00028333,2]
[355783901,1741560641360,-773.75335495,0.00028388,2]
[355783902,1741560641369,-802.38222908,0.00028443,2]
[355783903,1741560641379,-194.0,0.00028461,2]
[355783904,1741560641388,-832.07037156,0.00028498,2]
[355783905,1741560641398,-862.8569753,0.00028553,2]
[355783906,1741560641408,-420.0,0.00028591,2]
[355783907,1741560641417,-894.78268339,0.00028608,2]
[355783908,1741560641426,-249.0,0.00029102,2]
[355783909,1741560641436,-271.35611121,0.00029377,2]
[355783910,1741560641446,-652.04,0.00029378,3]
[355783911,1741560641455,-326.02,0.00029378,3]
[355783912,1741560641464,-250.0,0.0002939,2]
[355783913,1741560641474,-10000.0,0.00029473,2]
[355783914,1741560641484,-319.0,0.00029756,2]
[355783915,1741560641493,-438.72266612,0.00029838,2]
[355783916,1741560641503,-1011.5068848,0.00029841,2]
[355783917,1741560641513,-191.0,0.0003,2]
[355783918,1741560641522,-408.0,0.00030426,2]
[355783919,1741560641531,-2937.58551178,0.00030646,10]
[355783920,1741560641541,-24118.4096933,0.00030772,2]
[355783921,1741560641551,-185.96032923,0.00030772,2]
[355783922,1741560641560,-587.0,0.00030928,2]
[355783923,1741560641570,-483.02104107,0.00031108,2]
[355783924,1741560641580,-1000.0,0.00031952,2]
[355783925,1741560641589,-812.3129368,0.00031952,5]
[355783926,1741560641599,-1000.0,0.00031952,5]
[355783927,1741560641613,-1000.0,0.00031952,5]
[355783928,1741560641623,-500.0,0.00031952,5]
[355783929,1741560641632,-500.0,0.00031952,2]
[355783930,1741560641642,-1000.0,0.00031952,5]
[355783931,1741560641653,-1000.0,0.00031952,5]
[355783932,1741560641662,-1006.14740147,0.00031952,5]
[355783933,1741560641672,-1000.0,0.00031952,2]
[355783934,1741560641683,-186.54478239,0.00032999,2]
[355783935,1741560641692,-100.40369623,0.00033,10]
[355783936,1741560641701,-500.0,0.00033,10]
[355783937,1741560641710,-500.0,0.00033,10]
[355783938,1741560641723,-500.0,0.00033,10]
[355783939,1741560641732,-500.0,0.00033,10]
[355783940,1741560641741,-500.0,0.00033,10]
[355783941,1741560641751,-500.0,0.00033,10]
[355783942,1741560641760,-189.80218463,0.00033,10]
[355783943,1741560641770,-500.0,0.00033,10]
[355783944,1741560641780,-500.0,0.00033,10]
[355783945,1741560641892,-500.0,0.00033,10]
[355783946,1741560641905,-500.0,0.00033,10]
[355783947,1741560641915,-500.0,0.00033,10]
[355783948,1741560641925,-500.0,0.00033,10]
[355783949,1741560641935,-500.0,0.00033,10]
[355783950,1741560641944,-500.0,0.00033,10]
[355783951,1741560641954,-500.0,0.00033,10]
[355783952,1741560641964,-500.0,0.00033,10]
[355783953,1741560641974,-500.0,0.00033,10]
[355783954,1741560641984,-500.0,0.00033,10]
[355783955,1741560641994,-500.0,0.00033,10]
[355783956,1741560642004,-500.0,0.00033,10]
[355783957,1741560642013,-500.0,0.00033,10]
[355783958,1741560642022,-500.0,0.00033,10]
[355783959,1741560642032,-500.0,0.00033,10]
[355783960,1741560642041,-500.0,0.00033,10]
[355783961,1741560642050,-500.0,0.00033,10]
[355783962,1741560642060,-164.3254962,0.00033,10]
[355783963,1741560642069,-500.0,0.00033,10]
[355783964,1741560642078,-500.0,0.00033,10]
[355783965,1741560642088,-500.0,0.00033,10]
[355783966,1741560642098,-500.0,0.00033,10]
[355783967,1741560642107,-500.0,0.00033,10]
[355783968,1741560642117,-500.0,0.00033,10]
[355783969,1741560642128,-700.0,0.00033,10]
[355783970,1741560642138,-700.0,0.00033,10]
[355783971,1741560642148,-700.0,0.00033,10]
[355783972,1741560642164,-700.0,0.00033,10]
[355783973,1741560642174,-500.0,0.00033,10]
[355783974,1741560642183,-700.0,0.00033,10]
[355783975,1741560642193,-500.0,0.00033,10]
[355783976,1741560642202,-500.0,0.00033,10]
[355783977,1741560642212,-700.0,0.00033,10]
[355783978,1741560642222,-700.0,0.00033,10]
[355783979,1741560642232,-700.0,0.00033,10]
[355783980,1741560642242,-700.0,0.00033,10]
[355783981,1741560642251,-700.0,0.00033,10]
[355783982,1741560642261,-700.0,0.00033,10]
[355783983,1741560642271,-700.0,0.00033,10]
[355783984,1741560642280,-700.0,0.00033,10]
[355783985,1741560642290,-700.0,0.00033,10]
[355783986,1741560642299,-500.0,0.00033,10]
[355783987,1741560642308,-500.0,0.00033,10]
[355783988,1741560642318,-500.0,0.00033,10]
[355783989,1741560642327,-500.0,0.00033,10]
[355783990,1741560642337,-944.98972117,0.00033,10]
[355783991,1741560642347,-500.0,0.00033,10]
[355783992,1741560642356,-500.0,0.00033,10]
[355783993,1741560642366,-500.0,0.00033,10]
[355783994,1741560642375,-500.0,0.00033,10]
[355783995,1741560642384,-229.02390673,0.00033,10]
[355783996,1741560642394,-500.0,0.00033,10]
[355783997,1741560642412,-500.0,0.00033,10]
[355783998,1741560642422,-500.0,0.00033,10]
[355783999,1741560642431,-500.0,0.00033,10]
[355784000,1741560642441,-250.76,0.00033,30]
[355784001,1741560642451,-553.37,0.00033,30]
[355784002,1741560642460,-474.4,0.00033,30]
[355784003,1741560642470,-191.0,0.00033,2]
[355784004,1741560642480,-237.99,0.00033,30]
[355784005,1741560642490,-13841.27,0.00033,30]
[355784006,1741560642499,-1000.0,0.00033452,5]
[355784007,1741560642509,-694.53284559,0.00033452,5]
[355784008,1741560642519,-1000.0,0.00033452,5]
[355784009,1741560642528,-823.0,0.00033456,2]
[355784010,1741560642540,-5000.0,0.00033552,60]
[355784011,1741560642549,-5000.0,0.00033552,60]
[355784012,1741560642559,-5000.0,0.00033552,60]
[355784013,1741560642568,-5000.0,0.00033552,60]
[355784014,1741560642578,-5000.0,0.00033552,60]
[355784015,1741560642587,-5000.0,0.00033552,60]
[355784016,1741560642597,-218.751438,0.00033552,60]
[355784017,1741560642609,-500.0,0.00033552,5]
[355784018,1741560642619,-1000.0,0.00033552,5]
[355784019,1741560642629,-500.77851559,0.00033552,5]
[355784020,1741560642642,-1000.0,0.00033552,5]
[355784021,1741560642652,-291.23248099,0.00033552,5]
[355784022,1741560642662,-173.004,0.00034142,5]
[355784024,1741560642671,-24118.4096933,0.000348,2]
[355784026,1741560642682,-185.96032923,0.000348,2]
[355784028,1741560642692,-500.0,0.0003481,2]
[355784030,1741560642703,-1803.453458,0.00034848,2]
[355784031,1741560642712,-198.0125,0.00035,5]
[355784033,1741560642721,-187.94091348,0.00035827,2]
[355784035,1741560642731,-413.695118,0.0003589,2]
[355784037,1741560642740,-1845.9866971,0.00035927,2]
[355784039,1741560642750,-191.0,0.00036,2]
[355784042,1741560642759,-181.831309,0.00036066,2]
[355784044,1741560642770,-429.58774949,0.00036176,5]
[355784046,1741560642779,-1152.0,0.00036191,2]
[355784047,1741560642788,-175.59463535,0.000362,98]
[355784048,1741560642798,-150.86817263,0.00036529,5]
[355784049,1741560642807,-500.0,0.00036529,2]
[355784050,1741560642817,-500.0,0.00036529,5]
[355784051,1741560642826,-500.0,0.00036782,5]
[355784052,1741560642836,-500.0,0.00037167,5]
[355784053,1741560642845,-500.0,0.00037167,5]
[355784054,1741560642855,-166.80300035,0.0003734,2]
[355784055,1741560642866,-4512.91373725,0.00037557,2]
[355784056,1741560642876,-250.76,0.000376,30]
[355784058,1741560642886,-553.37,0.000376,30]
[355784060,1741560642897,-474.4,0.000376,30]
[355784062,1741560642909,-153.56157641,0.00037751,2]
[355784064,1741560642918,-175.93275,0.00037812,5]
[355784067,1741560642928,-72355.22908,0.00037831,3]
[355784070,1741560642938,-557.88098769,0.00037831,3]
[355784072,1741560642947,-96473.6387733,0.00037841,3]
[355784074,1741560642958,-2045.56362153,0.00037841,3]
[355784075,1741560642967,-185.96032923,0.00037842,3]
[355784076,1741560642977,-297.99655969,0.00037873,5]
[355784077,1741560642987,-305.69556243,0.00037873,5]
[355784078,1741560642996,-444.08433134,0.00037873,5]
[355784079,1741560643007,-639.23073795,0.00037873,5]
[355784080,1741560643016,-500.22200962,0.00037873,5]
[355784081,1741560643026,-521.08,0.000379,14]
[355784082,1741560643036,-237.99,0.000379,30]
[355784083,1741560643046,-13841.27,0.000379,30]
[355784084,1741560643055,-181.831309,0.0003823,2]
[355784085,1741560643065,-1613.0,0.00039149,5]
[355784086,1741560643074,-6039.46792288,0.0004,15]
[355784087,1741560643084,-413.695118,0.00041211,2]
[355784090,1741560643095,-370.6,0.000413,30]
[355784091,1741560643105,-198.0125,0.00041447,14]
[355784092,1741560643115,-879.45656268,0.00041971,2]
[355784093,1741560643125,-982.01245608,0.00041971,10]
[355784095,1741560643136,-1065.05790842,0.00041971,10]
[355784097,1741560643147,-1500.0,0.00041971,10]
[355784098,1741560643163,-500.0,0.00041971,10]
[355784099,1741560643173,-1500.0,0.00041971,2]
[355784100,1741560643184,-500.0,0.00042009,2]
[355784101,1741560643194,-1000.0,0.00042009,10]
[355784102,1741560643204,-160.0,0.00042051,2]
[355784103,1741560643214,-319.24796946,0.00042262,10]
[355784105,1741560643224,-2258.0,0.0004235,5]
[355784107,1741560643234,-199.28218752,0.00042646,10]
[355784109,1741560643243,-1000.0,0.00042646,10]
[355784111,1741560643253,-1437.18956879,0.0004296,4]
[355784112,1741560643263,-1500.0,0.00043471,10]
[355784113,1741560643272,-1500.0,0.00043471,10]
[355784114,1741560643282,-185.96032923,0.00043561,3]
[355784115,1741560643291,-550.43348901,0.00043571,7]
[355784116,1741560643300,-250.76,0.000436,30]
[355784117,1741560643309,-553.37,0.000436,30]
[355784118,1741560643319,-474.4,0.000436,30]
[355784119,1741560643329,-521.08,0.000436,14]
[355784120,1741560643339,-150.0,0.00045672,30]
[355784121,1741560643348,-237.99,0.000457,30]
[355784122,1741560643358,-13841.27,0.000457,30]
[355784123,1741560643368,-3162.0,0.00045811,5]
[355784124,1741560643378,-413.695118,0.00046532,2]
[355784125,1741560643387,-999.0,0.00046575,120]
[355784126,1741560643397,-464.207811,0.00046575,2]
[355784127,1741560643408,-150.0,0.00047042,30]
[355784128,1741560643417,-464.207811,0.00047573,2]
[355784129,1741560643427,-999.0,0.00047671,120]
[355784130,1741560643436,-160.0,0.00048105,3]
[355784131,1741560643445,-200.0,0.00048173,120]
[355784132,1741560643455,-851.33,0.000484,2]
[355784133,1741560643464,-397.220752,0.000484,26]
[355784134,1741560643474,-150.0,0.00048412,30]
[355784135,1741560643483,-6216.64879,0.00048534,30]
[355784136,1741560643493,-4566.58220972,0.00048535,2]
[355784137,1741560643502,-464.207811,0.00048571,2]
[355784139,1741560643512,-370.6,0.000486,30]
[355784140,1741560643521,-999.0,0.00048767,120]
[355784141,1741560643530,-153.39,0.000493,45]
[355784142,1741560643540,-153.39,0.000493,45]
[355784143,1741560643549,-153.39,0.000493,45]
[355784144,1741560643559,-153.39,0.000493,45]
[355784145,1741560643568,-153.39,0.000493,45]
[355784146,1741560643578,-153.39,0.000493,45]
[355784147,1741560643587,-153.39,0.000493,45]
[355784148,1741560643597,-153.39,0.000493,45]
[355784149,1741560643609,-153.39,0.000493,45]
[355784150,1741560643619,-150.0,0.00049315,2]
[355784151,1741560643629,-150.0,0.00049315,10]
[355784152,1741560643638,-521.08,0.000494,30]
[355784153,1741560643648,-185.96032923,0.0004949,4]
[355784154,1741560643660,-9875.79839133,0.00049498,2]
[355784155,1741560643670,-160.69,0.00049498,120]
[355784156,1741560643680,-4866.76049148,0.000495,120]
[355784157,1741560643690,-3032.0,0.00049556,5]
[355784158,1741560643699,-464.207811,0.0004957,2]
[355784159,1741560643710,-88877.35519385,0.00049598,30]
[355784160,1741560643720,-88877.35519385,0.00049598,30]
[355784161,1741560643729,-32396.46391335,0.00049598,30]
[355784162,1741560643738,-32396.46391335,0.00049598,30]
[355784163,1741560643748,-39447.46647218,0.00049598,30]
[355784164,1741560643758,-39447.46647218,0.00049598,30]
[355784165,1741560643767,-11868.18919448,0.00049598,30]
[355784166,1741560643777,-250.76,0.000496,30]
[355784167,1741560643787,-553.37,0.000496,30]
[355784168,1741560643796,-474.4,0.000496,30]
[355784169,1741560643805,-150.0,0.00049781,30]
[355784170,1741560643815,-13841.27,0.000498,30]
[355784171,1741560643824,-999.0,0.00049863,120]
[355784172,1741560643833,-250.0,0.00049863,10]
[355784173,1741560643842,-237.99,0.000499,30]
[355784174,1741560643852,-160.0,0.0004992,4]
[355784175,1741560643862,-200.0,0.00050018,120]
[355784176,1741560643871,-350.0,0.00050411,10]
[355784177,1741560643881,-398.0,0.00050524,2]
[355784178,1741560643889,-222000.0,0.00050535,2]
[355784180,1741560643899,-151.0,0.00050535,120]
[355784181,1741560643910,-151.0,0.00050535,120]
[355784182,1741560643920,-151.0,0.00050535,120]
[355784184,1741560643929,-599.630601,0.00050535,120]
[355784185,1741560643938,-599.630601,0.00050535,120]
[355784186,1741560643948,-151.267484,0.00050535,120]
[355784187,1741560643958,-151.0,0.00050535,120]
[355784188,1741560644059,-151.0,0.00050535,120]
[355784189,1741560644069,-151.0,0.00050535,90]
[355784190,1741560644079,-151.0,0.00050535,120]
[355784191,1741560644088,-151.0,0.00050535,120]
[355784192,1741560644098,-151.0,0.00050535,120]
[355784193,1741560644107,-151.0,0.00050535,120]
[355784194,1741560644117,-299.286773,0.00050535,120]
[355784195,1741560644126,-163.216272,0.00050535,120]
[355784196,1741560644136,-163.216272,0.00050535,120]
[355784197,1741560644147,-464.207811,0.00050568,2]
[355784198,1741560644157,-150.0,0.00050573,10]
[355784199,1741560644166,-500.0,0.00050611,6]
[355784200,1741560644175,-151.0,0.0005063,120]
[355784201,1741560644185,-151.0,0.0005063,120]
[355784202,1741560644195,-151.0,0.00050649,120]
[355784203,1741560644205,-500.0,0.00050679,91]
[355784204,1741560644214,-645.82187684,0.00050684,7]
[355784205,1741560644224,-4589.79782434,0.00050686,71]
[355784206,1741560644234,-53826.83420042,0.00050687,71]
[355784207,1741560644243,-151.0,0.00050687,120]
[355784208,1741560644252,-151.0,0.00050687,120]
[355784209,1741560644261,-151.0,0.00050687,7]
[355784210,1741560644270,-151.0,0.00050687,120]
[355784211,1741560644280,-599.630601,0.00050687,120]
[355784212,1741560644289,-599.630601,0.00050687,120]
[355784213,1741560644298,-151.0,0.00050687,120]
[355784214,1741560644307,-151.0,0.00050687,120]
[355784215,1741560644317,-151.0,0.00050687,120]
[355784216,1741560644327,-151.0,0.00050687,120]
[355784217,1741560644336,-151.0,0.00050687,120]
[355784218,1741560644345,-163.216272,0.00050687,120]
[355784219,1741560644354,-163.216272,0.00050687,120]
[355784220,1741560644363,-500.0,0.00050748,6]
[355784221,1741560644373,-151.0,0.00050753,30]
[355784222,1741560644382,-301.0532,0.00050753,30]
[355784223,1741560644393,-151.0,0.00050753,120]
[355784224,1741560644403,-151.0,0.00050753,120]
[355784225,1741560644413,-212.112828,0.00050753,120]
[355784226,1741560644422,-151.0,0.00050753,120]
[355784227,1741560644431,-151.0,0.00050753,120]
[355784228,1741560644442,-151.0,0.00050753,120]
[355784229,1741560644453,-151.0,0.00050753,120]
[355784230,1741560644462,-40036.85598043,0.00050753,2]
[355784231,1741560644471,-11243.91146512,0.00050753,120]
[355784232,1741560644481,-502.96618792,0.00050753,2]
[355784233,1741560644490,-660.499469,0.00050753,120]
[355784234,1741560644499,-84674.15429369,0.00050753,7]
[355784235,1741560644618,-992.00651288,0.00050753,7]
[355784236,1741560644629,-517.88899078,0.00050753,7]
[355784237,1741560644873,-0.00218509,0.00050753,7]
[355784238,1741560645085,-1165.80998642,0.00028672,2]
[355784239,1741560645095,-1165.80998642,0.00033672,2]
[355784240,1741560645104,-1165.80998642,0.00038672,2]
[355784241,1741560645113,-20430.89983142,0.00050753,7]
[355784242,1741560645229,-35.71801918,0.00050753,7]
[355784243,1741560645495,-230.0,0.00033,2]
[355784257,1741560646158,-230.0,0.00036,2]
[355784258,1741560646168,-230.0,0.00039,2]
[355784259,1741560646177,-7628.8,0.00050753,7]
[355784260,1741560646189,-1097.39737188,0.00050753,7]
[355784261,1741560648676,-364.05631117,0.0003664,2]
[355784262,1741560670874,-150.0,0.00026468,2]
[355784263,1741560693069,160.0,0.0002,3]
[355784264,1741560699216,-159.58505571,0.00026468,2]
[355784265,1741560738475,-182.67124542,0.00026118,2]
[355784266,1741560762082,-117.32875458,0.00026118,2]
[355784267,1741560762106,-51.67124542,0.00026118,2]
[355784268,1741560766533,-169.0,0.00026118,2]
[355784269,1741560814797,-164.503393,0.00026098,3]
[355784270,1741560875777,-163.818954,0.00025113,2]
[355784271,1741560931068,151.0,0.000273,15]
[355784272,1741560931361,151.0,0.000271,19]
[355784273,1741560931742,151.0,0.00027,11]
[355784274,1741560939336,-150.90626767,0.00025108,2]
[355784280,1741560961952,-188.87013029,0.00025108,2]
[355784281,1741560993669,380.0,0.0002483,2]
[355784282,1741561023014,-150.0,0.00025108,2]
[355784285,1741561081989,-72.49931204,0.00025108,2]
[355784286,1741561082014,-80.36003282,0.00025113,2]
[355784287,1741561098276,-204.017126,0.00025113,2]
[355784288,1741561125390,-328.18502749,0.00025113,2]
[355784290,1741561173192,-163.556062,0.00025073,2]
[355784291,1741561208073,500.0,0.00024911,2]
[355784292,1741561214489,-3832.879049,0.00025073,2]
[355784293,1741561219629,-3611.24799899,0.00025113,2]
[355784294,1741561226544,-1129.4511453,0.00025132,2]
[355784295,1741561233104,151.0,0.000261,11]
[355784296,1741561233571,151.0,0.000261,18]
[355784297,1741561233750,151.0,0.000261,19]
[355784298,1741561234077,151.0,0.000261,20]
[355784299,1741561234496,151.0,0.000261,14]
[355784300,1741561235215,151.0,0.000261,14]
[355784301,1741561235527,151.0,0.000261,14]
[355784303,1741561381116,-1067.30104618,0.00025994,2]
[355784304,1741561385825,-179.2570724,0.00025996,2]
[355784309,1741561454375,416.66666667,0.00029,10]
[355784310,1741561459440,-300.0,0.00025286,2]
[355784311,1741561493078,250.0,0.00024836,2]
[355784312,1741561496043,-6625.0,0.00025087,2]
[355784314,1741561546931,4797.57621674,0.00024,2]
[355784315,1741561604539,160.0,0.0002,3]
[355784316,1741561619730,-3375.0,0.00025087,2]
[355784317,1741561624118,-1346.02603186,0.00025186,2]
[355784318,1741561628683,24900.0,0.00024281,2]
[355784319,1741561632836,613.84235106,0.00025187,30]
[355784320,1741561685410,-1225.64116682,0.00025185,2]
[355784321,1741561685512,8772.8871089,0.00024277,2]
[355784322,1741561694861,195.5275059,0.00024278,2]
[355784323,1741561731943,-300.0,0.00025272,2]
[355784324,1741561746042,-300.0,0.00025272,2]
[355784325,1741561760638,416.66666667,0.00029,10]
[355784326,1741561763082,416.66666667,0.00029,10]
[355784327,1741561763169,-500.0,0.00025273,2]
[355784328,1741561763193,-511.43705835,0.00025273,2]
[355784329,1741561763217,-501.4176322,0.00025273,2]
[355784330,1741561763240,-500.0,0.00025273,2]
[355784331,1741561763262,-500.0,0.00025273,2]
[355784332,1741561763282,-500.0,0.00025273,2]
[355784333,1741561763302,-500.0,0.00025273,2]
[355784334,1741561763323,-501.35403126,0.00025273,2]
[355784335,1741561763345,-500.0,0.00025273,2]
[355784336,1741561763364,-503.70521121,0.00025273,2]
[355784337,1741561763385,-500.0,0.00025273,2]
[355784338,1741561763411,-419.08339367,0.00025273,2]
[355784339,1741561781923,59840.4213583,0.00024276,2]
[355784340,1741561785792,-82.51114521,0.00025273,2]
[355784341,1741561785817,-500.0,0.00025273,2]
[355784342,1741561785840,-500.0,0.00025273,2]
[355784343,1741561785864,-500.0,0.00025273,2]
[355784344,1741561785890,-180.09194162,0.00025273,2]
[355784345,1741561785914,-500.0,0.00025273,2]
[355784346,1741561785941,-500.0,0.00025273,2]
[355784347,1741561785965,-501.28920938,0.00025273,2]
[355784348,1741561785989,-418.46718373,0.00025273,2]
[355784349,1741561786014,-117.64052006,0.00025273,2]
[355784350,1741561787377,264.8484716,0.00024276,2]
[355784412,1741561834005,-1547.99783049,0.00025174,2]
[355784413,1741561834016,-730.01,0.00025264,3]
[355784414,1741561834026,-365.01,0.00025264,3]
[355784415,1741561834037,-182.5,0.00025264,3]
[355784416,1741561834048,-547.55,0.00025264,3]
[355784417,1741561834061,-300.0,0.00025272,2]
[355784418,1741561834073,-500.0,0.00025273,2]
[355784419,1741561834084,-501.61592095,0.00025273,2]
[355784420,1741561834095,-227.19673698,0.00025273,2]
[355784421,1741561834103,-519.34971061,0.00025273,2]
[355784422,1741561834111,-501.66513458,0.00025273,2]
[355784423,1741561834122,-500.0,0.00025273,2]
[355784424,1741561834132,-160.40494455,0.00025273,2]
[355784425,1741561834143,-500.0,0.00025273,2]
[355784426,1741561834154,-500.0,0.00025273,2]
[355784427,1741561834165,-500.0,0.00025273,2]
[355784428,1741561834174,-500.0,0.00025273,2]
[355784429,1741561834185,-500.0,0.00025273,2]
[355784430,1741561834196,-500.0,0.00025273,2]
[355784431,1741561834208,-500.0,0.00025273,2]
[355784432,1741561834218,-443.56502801,0.00025273,2]
[355784433,1741561834230,-500.0,0.00025273,2]
[355784434,1741561834240,-500.0,0.00025273,2]
[355784435,1741561834250,-500.0,0.00025273,2]
[355784436,1741561834262,-500.0,0.00025273,2]
[355784437,1741561834273,-500.0,0.00025274,2]